{"text_format":"1","workbook":"xlsx","n_sheets":5,"sheets":["General_data","Insert_GAPs","Country_list","Crop_list","Dropdown_lists"],"not_rendered":{"charts":0,"images":0,"macros":1,"external_links":0,"defined_names":16,"comments":0,"pivot_tables":0},"unopened":[],"bounds":{"document_bytes":16777216,"sheet_cells":100000,"rows_first":2000,"rows_last":500,"rows_between":2000,"halvings":0,"cell_chars":16384,"cell_head_chars":4096},"cells_cut":0,"cells_raw":0,"read":"whole","date_system":"1900"}

{"sheet":"General_data","index":0,"n_rows":12,"n_cols":2,"rows_kept":12,"cut":false,"hidden":false,"merged":[[3,1,3,2],[11,1,11,2],[1,1,1,2]]}
[]
[null,"Authorised GAP Form"]
[]
[null,"This form is intended to report Good Agricultural Practices (GAPs) that are authorised in a specific country and for a given active substance, in view of the review of Maximum Residue Levels (MRLs) under Article 12 of Regulation (EC) N° 396/2005.\n\nBefore proceeding with the GAP tables, please make sure to complete the following general data."]
[]
[null,"Country:"]
[]
[null,"Active substance:"]
[]
[null,"Type of crops:"]
[]
[null,"Thank you. You can now start compiling the GAP tables in the dedicated worksheet but please read the instructions first."]

{"sheet":"Insert_GAPs","index":1,"n_rows":26,"n_cols":23,"rows_kept":26,"cut":false,"hidden":false,"merged":[[1,17,2,17],[0,3,2,3],[0,4,2,4],[1,8,1,9],[1,10,2,10],[1,11,1,12],[1,13,1,14],[1,15,1,16],[0,22,2,22],[25,1,25,2],[0,20,2,20],[0,5,2,5],[0,6,2,6],[0,7,0,9],[0,10,0,16],[0,17,0,19],[0,0,0,2],[1,0,2,0],[1,18,2,18],[1,19,2,19],[0,21,2,21],[1,1,2,1],[1,2,2,2],[1,7,2,7]]}
["Crop",null,null,"Region","Outdoor/ Indoor","Country","Pests controlled","Formulation",null,null,"Application",null,null,null,null,null,null,"Application rate",null,null,"PHI  or wiaiting period (days)","Comments (max. 250 charachters)","Additional information (including availability of supporting data) \n(e.g. \"8 GAP compliant trials available in [DAR/ zonal RR] or [can be provided if needed]\")"]
["Code","Common name","Scientific name",null,null,null,null,"Type","Content",null,"Method","Growth stage",null,"Number",null,"Interval (days)",null,"Min. rate","Max. rate","Rate Unit"]
[null,null,null,null,null,null,null,null,"Conc.","Unit",null,"From BBCH","Until BBCH","Min.","Max.","Min.","Max."]
[{"$f":"IF(B4=\"\",\"\",VLOOKUP(B4,Crop_list!$A$1:$C$234,2,FALSE))","v":""},null,{"$f":"IF(B4=\"\",\"\",VLOOKUP(B4,Crop_list!$A$1:$C$234,3,FALSE))","v":""},{"$f":"IF(General_data!$C$6=\"\",\"\",VLOOKUP(General_data!$C$6,Country_list!$A$1:$C$250,3,FALSE))","v":""},null,{"$f":"IF(General_data!$C$6=\"\",\"\",VLOOKUP(General_data!$C$6,Country_list!$A$1:$C$250,2,FALSE))","v":""}]
[{"$f":"IF(B5=\"\",\"\",VLOOKUP(B5,Crop_list!$A$1:$C$234,2,FALSE))","v":""},null,{"$f":"IF(B5=\"\",\"\",VLOOKUP(B5,Crop_list!$A$1:$C$234,3,FALSE))","v":""},{"$f":"IF(General_data!$C$6=\"\",\"\",VLOOKUP(General_data!$C$6,Country_list!$A$1:$C$250,3,FALSE))","v":""},null,{"$f":"IF(General_data!$C$6=\"\",\"\",VLOOKUP(General_data!$C$6,Country_list!$A$1:$C$250,2,FALSE))","v":""}]
[{"$f":"IF(B6=\"\",\"\",VLOOKUP(B6,Crop_list!$A$1:$C$234,2,FALSE))","v":""},null,{"$f":"IF(B6=\"\",\"\",VLOOKUP(B6,Crop_list!$A$1:$C$234,3,FALSE))","v":""},{"$f":"IF(General_data!$C$6=\"\",\"\",VLOOKUP(General_data!$C$6,Country_list!$A$1:$C$250,3,FALSE))","v":""},null,{"$f":"IF(General_data!$C$6=\"\",\"\",VLOOKUP(General_data!$C$6,Country_list!$A$1:$C$250,2,FALSE))","v":""}]
[{"$f":"IF(B7=\"\",\"\",VLOOKUP(B7,Crop_list!$A$1:$C$234,2,FALSE))","v":""},null,{"$f":"IF(B7=\"\",\"\",VLOOKUP(B7,Crop_list!$A$1:$C$234,3,FALSE))","v":""},{"$f":"IF(General_data!$C$6=\"\",\"\",VLOOKUP(General_data!$C$6,Country_list!$A$1:$C$250,3,FALSE))","v":""},null,{"$f":"IF(General_data!$C$6=\"\",\"\",VLOOKUP(General_data!$C$6,Country_list!$A$1:$C$250,2,FALSE))","v":""}]
[{"$f":"IF(B8=\"\",\"\",VLOOKUP(B8,Crop_list!$A$1:$C$234,2,FALSE))","v":""},null,{"$f":"IF(B8=\"\",\"\",VLOOKUP(B8,Crop_list!$A$1:$C$234,3,FALSE))","v":""},{"$f":"IF(General_data!$C$6=\"\",\"\",VLOOKUP(General_data!$C$6,Country_list!$A$1:$C$250,3,FALSE))","v":""},null,{"$f":"IF(General_data!$C$6=\"\",\"\",VLOOKUP(General_data!$C$6,Country_list!$A$1:$C$250,2,FALSE))","v":""}]
[{"$f":"IF(B9=\"\",\"\",VLOOKUP(B9,Crop_list!$A$1:$C$234,2,FALSE))","v":""},null,{"$f":"IF(B9=\"\",\"\",VLOOKUP(B9,Crop_list!$A$1:$C$234,3,FALSE))","v":""},{"$f":"IF(General_data!$C$6=\"\",\"\",VLOOKUP(General_data!$C$6,Country_list!$A$1:$C$250,3,FALSE))","v":""},null,{"$f":"IF(General_data!$C$6=\"\",\"\",VLOOKUP(General_data!$C$6,Country_list!$A$1:$C$250,2,FALSE))","v":""}]
[{"$f":"IF(B10=\"\",\"\",VLOOKUP(B10,Crop_list!$A$1:$C$234,2,FALSE))","v":""},null,{"$f":"IF(B10=\"\",\"\",VLOOKUP(B10,Crop_list!$A$1:$C$234,3,FALSE))","v":""},{"$f":"IF(General_data!$C$6=\"\",\"\",VLOOKUP(General_data!$C$6,Country_list!$A$1:$C$250,3,FALSE))","v":""},null,{"$f":"IF(General_data!$C$6=\"\",\"\",VLOOKUP(General_data!$C$6,Country_list!$A$1:$C$250,2,FALSE))","v":""}]
[{"$f":"IF(B11=\"\",\"\",VLOOKUP(B11,Crop_list!$A$1:$C$234,2,FALSE))","v":""},null,{"$f":"IF(B11=\"\",\"\",VLOOKUP(B11,Crop_list!$A$1:$C$234,3,FALSE))","v":""},{"$f":"IF(General_data!$C$6=\"\",\"\",VLOOKUP(General_data!$C$6,Country_list!$A$1:$C$250,3,FALSE))","v":""},null,{"$f":"IF(General_data!$C$6=\"\",\"\",VLOOKUP(General_data!$C$6,Country_list!$A$1:$C$250,2,FALSE))","v":""}]
[{"$f":"IF(B12=\"\",\"\",VLOOKUP(B12,Crop_list!$A$1:$C$234,2,FALSE))","v":""},null,{"$f":"IF(B12=\"\",\"\",VLOOKUP(B12,Crop_list!$A$1:$C$234,3,FALSE))","v":""},{"$f":"IF(General_data!$C$6=\"\",\"\",VLOOKUP(General_data!$C$6,Country_list!$A$1:$C$250,3,FALSE))","v":""},null,{"$f":"IF(General_data!$C$6=\"\",\"\",VLOOKUP(General_data!$C$6,Country_list!$A$1:$C$250,2,FALSE))","v":""}]
[{"$f":"IF(B13=\"\",\"\",VLOOKUP(B13,Crop_list!$A$1:$C$234,2,FALSE))","v":""},null,{"$f":"IF(B13=\"\",\"\",VLOOKUP(B13,Crop_list!$A$1:$C$234,3,FALSE))","v":""},{"$f":"IF(General_data!$C$6=\"\",\"\",VLOOKUP(General_data!$C$6,Country_list!$A$1:$C$250,3,FALSE))","v":""},null,{"$f":"IF(General_data!$C$6=\"\",\"\",VLOOKUP(General_data!$C$6,Country_list!$A$1:$C$250,2,FALSE))","v":""}]
[{"$f":"IF(B14=\"\",\"\",VLOOKUP(B14,Crop_list!$A$1:$C$234,2,FALSE))","v":""},null,{"$f":"IF(B14=\"\",\"\",VLOOKUP(B14,Crop_list!$A$1:$C$234,3,FALSE))","v":""},{"$f":"IF(General_data!$C$6=\"\",\"\",VLOOKUP(General_data!$C$6,Country_list!$A$1:$C$250,3,FALSE))","v":""},null,{"$f":"IF(General_data!$C$6=\"\",\"\",VLOOKUP(General_data!$C$6,Country_list!$A$1:$C$250,2,FALSE))","v":""}]
[{"$f":"IF(B15=\"\",\"\",VLOOKUP(B15,Crop_list!$A$1:$C$234,2,FALSE))","v":""},null,{"$f":"IF(B15=\"\",\"\",VLOOKUP(B15,Crop_list!$A$1:$C$234,3,FALSE))","v":""},{"$f":"IF(General_data!$C$6=\"\",\"\",VLOOKUP(General_data!$C$6,Country_list!$A$1:$C$250,3,FALSE))","v":""},null,{"$f":"IF(General_data!$C$6=\"\",\"\",VLOOKUP(General_data!$C$6,Country_list!$A$1:$C$250,2,FALSE))","v":""}]
[{"$f":"IF(B16=\"\",\"\",VLOOKUP(B16,Crop_list!$A$1:$C$234,2,FALSE))","v":""},null,{"$f":"IF(B16=\"\",\"\",VLOOKUP(B16,Crop_list!$A$1:$C$234,3,FALSE))","v":""},{"$f":"IF(General_data!$C$6=\"\",\"\",VLOOKUP(General_data!$C$6,Country_list!$A$1:$C$250,3,FALSE))","v":""},null,{"$f":"IF(General_data!$C$6=\"\",\"\",VLOOKUP(General_data!$C$6,Country_list!$A$1:$C$250,2,FALSE))","v":""}]
[{"$f":"IF(B17=\"\",\"\",VLOOKUP(B17,Crop_list!$A$1:$C$234,2,FALSE))","v":""},null,{"$f":"IF(B17=\"\",\"\",VLOOKUP(B17,Crop_list!$A$1:$C$234,3,FALSE))","v":""},{"$f":"IF(General_data!$C$6=\"\",\"\",VLOOKUP(General_data!$C$6,Country_list!$A$1:$C$250,3,FALSE))","v":""},null,{"$f":"IF(General_data!$C$6=\"\",\"\",VLOOKUP(General_data!$C$6,Country_list!$A$1:$C$250,2,FALSE))","v":""}]
[{"$f":"IF(B18=\"\",\"\",VLOOKUP(B18,Crop_list!$A$1:$C$234,2,FALSE))","v":""},null,{"$f":"IF(B18=\"\",\"\",VLOOKUP(B18,Crop_list!$A$1:$C$234,3,FALSE))","v":""},{"$f":"IF(General_data!$C$6=\"\",\"\",VLOOKUP(General_data!$C$6,Country_list!$A$1:$C$250,3,FALSE))","v":""},null,{"$f":"IF(General_data!$C$6=\"\",\"\",VLOOKUP(General_data!$C$6,Country_list!$A$1:$C$250,2,FALSE))","v":""}]
[{"$f":"IF(B19=\"\",\"\",VLOOKUP(B19,Crop_list!$A$1:$C$234,2,FALSE))","v":""},null,{"$f":"IF(B19=\"\",\"\",VLOOKUP(B19,Crop_list!$A$1:$C$234,3,FALSE))","v":""},{"$f":"IF(General_data!$C$6=\"\",\"\",VLOOKUP(General_data!$C$6,Country_list!$A$1:$C$250,3,FALSE))","v":""},null,{"$f":"IF(General_data!$C$6=\"\",\"\",VLOOKUP(General_data!$C$6,Country_list!$A$1:$C$250,2,FALSE))","v":""}]
[{"$f":"IF(B20=\"\",\"\",VLOOKUP(B20,Crop_list!$A$1:$C$234,2,FALSE))","v":""},null,{"$f":"IF(B20=\"\",\"\",VLOOKUP(B20,Crop_list!$A$1:$C$234,3,FALSE))","v":""},{"$f":"IF(General_data!$C$6=\"\",\"\",VLOOKUP(General_data!$C$6,Country_list!$A$1:$C$250,3,FALSE))","v":""},null,{"$f":"IF(General_data!$C$6=\"\",\"\",VLOOKUP(General_data!$C$6,Country_list!$A$1:$C$250,2,FALSE))","v":""}]
[{"$f":"IF(B21=\"\",\"\",VLOOKUP(B21,Crop_list!$A$1:$C$234,2,FALSE))","v":""},null,{"$f":"IF(B21=\"\",\"\",VLOOKUP(B21,Crop_list!$A$1:$C$234,3,FALSE))","v":""},{"$f":"IF(General_data!$C$6=\"\",\"\",VLOOKUP(General_data!$C$6,Country_list!$A$1:$C$250,3,FALSE))","v":""},null,{"$f":"IF(General_data!$C$6=\"\",\"\",VLOOKUP(General_data!$C$6,Country_list!$A$1:$C$250,2,FALSE))","v":""}]
[{"$f":"IF(B22=\"\",\"\",VLOOKUP(B22,Crop_list!$A$1:$C$234,2,FALSE))","v":""},null,{"$f":"IF(B22=\"\",\"\",VLOOKUP(B22,Crop_list!$A$1:$C$234,3,FALSE))","v":""},{"$f":"IF(General_data!$C$6=\"\",\"\",VLOOKUP(General_data!$C$6,Country_list!$A$1:$C$250,3,FALSE))","v":""},null,{"$f":"IF(General_data!$C$6=\"\",\"\",VLOOKUP(General_data!$C$6,Country_list!$A$1:$C$250,2,FALSE))","v":""}]
[{"$f":"IF(B23=\"\",\"\",VLOOKUP(B23,Crop_list!$A$1:$C$234,2,FALSE))","v":""},null,{"$f":"IF(B23=\"\",\"\",VLOOKUP(B23,Crop_list!$A$1:$C$234,3,FALSE))","v":""},{"$f":"IF(General_data!$C$6=\"\",\"\",VLOOKUP(General_data!$C$6,Country_list!$A$1:$C$250,3,FALSE))","v":""},null,{"$f":"IF(General_data!$C$6=\"\",\"\",VLOOKUP(General_data!$C$6,Country_list!$A$1:$C$250,2,FALSE))","v":""}]
[]
[]
[null,"The following macros do not need to be run in the presented order. Hence, they can be used at any time, as needed."]

{"sheet":"Country_list","index":2,"n_rows":250,"n_cols":3,"rows_kept":250,"cut":false,"hidden":true,"merged":[]}
["Country_name","Country_code","Country_region"]
["Austria","AT","NEU"]
["Belgium","BE","NEU"]
["Bulgaria","BG","SEU"]
["Croatia","HR","SEU"]
["Cyprus","CY","SEU"]
["Czech Republic","CZ","NEU"]
["Denmark","DK","NEU"]
["Estonia","EE","NEU"]
["Finland","FI","NEU"]
["France","FR","NEU/SEU"]
["Germany","DE","NEU"]
["Greece","EL","SEU"]
["Hungary","HU","NEU"]
["Ireland","IE","NEU"]
["Italy","IT","SEU"]
["Latvia","LV","NEU"]
["Lithuania","LT","NEU"]
["Luxembourg","LU","NEU"]
["Malta","MT","SEU"]
["Netherlands","NL","NEU"]
["Poland","PL","NEU"]
["Portugal","PT","SEU"]
["Romania","RO","NEU"]
["Slovakia","SK","NEU"]
["Slovenia","SI","NEU"]
["Spain","ES","SEU"]
["Sweden","SE","NEU"]
["United Kingdom","UK","NEU"]
["Iceland","IS","NEU"]
["Liechtenstein","LI","NEU"]
["Norway","NO","NEU"]
["Switzerland","CH","NEU"]
["Afghanistan","AF","non-EU"]
["Åland Islands","AX","non-EU"]
["Albania","AL","non-EU"]
["Algeria","DZ","non-EU"]
["American Samoa","AS","non-EU"]
["Andorra","AD","non-EU"]
["Angola","AO","non-EU"]
["Anguilla","AI","non-EU"]
["Antarctica","AQ","non-EU"]
["Antigua and Barbuda","AG","non-EU"]
["Argentina","AR","non-EU"]
["Armenia","AM","non-EU"]
["Aruba","AW","non-EU"]
["Australia","AU","non-EU"]
["Azerbaijan","AZ","non-EU"]
["Bahamas","BS","non-EU"]
["Bahrain","BH","non-EU"]
["Bangladesh","BD","non-EU"]
["Barbados","BB","non-EU"]
["Belarus","BY","non-EU"]
["Belize","BZ","non-EU"]
["Benin","BJ","non-EU"]
["Bermuda","BM","non-EU"]
["Bhutan","BT","non-EU"]
["Bolivia (Plurinational State of)","BO","non-EU"]
["Bonaire, Sint Eustatius and Saba","BQ","non-EU"]
["Bosnia and Herzegovina","BA","non-EU"]
["Botswana","BW","non-EU"]
["Bouvet Island","BV","non-EU"]
["Brazil","BR","non-EU"]
["British Indian Ocean Territory","IO","non-EU"]
["Brunei Darussalam","BN","non-EU"]
["Burkina Faso","BF","non-EU"]
["Burundi","BI","non-EU"]
["Cabo Verde","CV","non-EU"]
["Cambodia","KH","non-EU"]
["Cameroon","CM","non-EU"]
["Canada","CA","non-EU"]
["Cayman Islands","KY","non-EU"]
["Central African Republic","CF","non-EU"]
["Chad","TD","non-EU"]
["Chile","CL","non-EU"]
["China","CN","non-EU"]
["Christmas Island","CX","non-EU"]
["Cocos (Keeling) Islands","CC","non-EU"]
["Colombia","CO","non-EU"]
["Comoros","KM","non-EU"]
["Congo","CG","non-EU"]
["Congo (Democratic Republic of the)","CD","non-EU"]
["Cook Islands","CK","non-EU"]
["Costa Rica","CR","non-EU"]
["Côte d'Ivoire","CI","non-EU"]
["Cuba","CU","non-EU"]
["Curaçao","CW","non-EU"]
["Djibouti","DJ","non-EU"]
["Dominica","DM","non-EU"]
["Dominican Republic","DO","non-EU"]
["Ecuador","EC","non-EU"]
["Egypt","EG","non-EU"]
["El Salvador","SV","non-EU"]
["Equatorial Guinea","GQ","non-EU"]
["Eritrea","ER","non-EU"]
["Ethiopia","ET","non-EU"]
["Falkland Islands (Malvinas)","FK","non-EU"]
["Faroe Islands","FO","non-EU"]
["Fiji","FJ","non-EU"]
["French Guiana","GF","non-EU"]
["French Polynesia","PF","non-EU"]
["French Southern Territories","TF","non-EU"]
["Gabon","GA","non-EU"]
["Gambia","GM","non-EU"]
["Georgia","GE","non-EU"]
["Ghana","GH","non-EU"]
["Gibraltar","GI","non-EU"]
["Greenland","GL","non-EU"]
["Grenada","GD","non-EU"]
["Guadeloupe","GP","non-EU"]
["Guam","GU","non-EU"]
["Guatemala","GT","non-EU"]
["Guernsey","GG","non-EU"]
["Guinea","GN","non-EU"]
["Guinea-Bissau","GW","non-EU"]
["Guyana","GY","non-EU"]
["Haiti","HT","non-EU"]
["Heard Island and McDonald Islands","HM","non-EU"]
["Holy See","VA","non-EU"]
["Honduras","HN","non-EU"]
["Hong Kong","HK","non-EU"]
["India","IN","non-EU"]
["Indonesia","ID","non-EU"]
["Iran (Islamic Republic of)","IR","non-EU"]
["Iraq","IQ","non-EU"]
["Isle of Man","IM","non-EU"]
["Israel","IL","non-EU"]
["Jamaica","JM","non-EU"]
["Japan","JP","non-EU"]
["Jersey","JE","non-EU"]
["Jordan","JO","non-EU"]
["Kazakhstan","KZ","non-EU"]
["Kenya","KE","non-EU"]
["Kiribati","KI","non-EU"]
["Korea (Democratic People's Republic of)","KP","non-EU"]
["Korea (Republic of)","KR","non-EU"]
["Kuwait","KW","non-EU"]
["Kyrgyzstan","KG","non-EU"]
["Lao People's Democratic Republic","LA","non-EU"]
["Lebanon","LB","non-EU"]
["Lesotho","LS","non-EU"]
["Liberia","LR","non-EU"]
["Libya","LY","non-EU"]
["Macao","MO","non-EU"]
["Macedonia (the former Yugoslav Republic of)","MK","non-EU"]
["Madagascar","MG","non-EU"]
["Malawi","MW","non-EU"]
["Malaysia","MY","non-EU"]
["Maldives","MV","non-EU"]
["Mali","ML","non-EU"]
["Marshall Islands","MH","non-EU"]
["Martinique","MQ","non-EU"]
["Mauritania","MR","non-EU"]
["Mauritius","MU","non-EU"]
["Mayotte","YT","non-EU"]
["Mexico","MX","non-EU"]
["Micronesia (Federated States of)","FM","non-EU"]
["Moldova (Republic of)","MD","non-EU"]
["Monaco","MC","non-EU"]
["Mongolia","MN","non-EU"]
["Montenegro","ME","non-EU"]
["Montserrat","MS","non-EU"]
["Morocco","MA","non-EU"]
["Mozambique","MZ","non-EU"]
["Myanmar","MM","non-EU"]
["Namibia","NA","non-EU"]
["Nauru","NR","non-EU"]
["Nepal","NP","non-EU"]
["New Caledonia","NC","non-EU"]
["New Zealand","NZ","non-EU"]
["Nicaragua","NI","non-EU"]
["Niger","NE","non-EU"]
["Nigeria","NG","non-EU"]
["Niue","NU","non-EU"]
["Norfolk Island","NF","non-EU"]
["Northern Mariana Islands","MP","non-EU"]
["Oman","OM","non-EU"]
["Pakistan","PK","non-EU"]
["Palau","PW","non-EU"]
["Palestine, State of","PS","non-EU"]
["Panama","PA","non-EU"]
["Papua New Guinea","PG","non-EU"]
["Paraguay","PY","non-EU"]
["Peru","PE","non-EU"]
["Philippines","PH","non-EU"]
["Pitcairn","PN","non-EU"]
["Puerto Rico","PR","non-EU"]
["Qatar","QA","non-EU"]
["Réunion","RE","non-EU"]
["Russian Federation","RU","non-EU"]
["Rwanda","RW","non-EU"]
["Saint Barthélemy","BL","non-EU"]
["Saint Helena, Ascension and Tristan da Cunha","SH","non-EU"]
["Saint Kitts and Nevis","KN","non-EU"]
["Saint Lucia","LC","non-EU"]
["Saint Martin (French part)","MF","non-EU"]
["Saint Pierre and Miquelon","PM","non-EU"]
["Saint Vincent and the Grenadines","VC","non-EU"]
["Samoa","WS","non-EU"]
["San Marino","SM","non-EU"]
["Sao Tome and Principe","ST","non-EU"]
["Saudi Arabia","SA","non-EU"]
["Senegal","SN","non-EU"]
["Serbia","RS","non-EU"]
["Seychelles","SC","non-EU"]
["Sierra Leone","SL","non-EU"]
["Singapore","SG","non-EU"]
["Sint Maarten (Dutch part)","SX","non-EU"]
["Solomon Islands","SB","non-EU"]
["Somalia","SO","non-EU"]
["South Africa","ZA","non-EU"]
["South Georgia and the South Sandwich Islands","GS","non-EU"]
["South Sudan","SS","non-EU"]
["Sri Lanka","LK","non-EU"]
["Sudan","SD","non-EU"]
["Suriname","SR","non-EU"]
["Svalbard and Jan Mayen","SJ","non-EU"]
["Swaziland","SZ","non-EU"]
["Syrian Arab Republic","SY","non-EU"]
["Taiwan, Province of China","TW","non-EU"]
["Tajikistan","TJ","non-EU"]
["Tanzania, United Republic of","TZ","non-EU"]
["Thailand","TH","non-EU"]
["Timor-Leste","TL","non-EU"]
["Togo","TG","non-EU"]
["Tokelau","TK","non-EU"]
["Tonga","TO","non-EU"]
["Trinidad and Tobago","TT","non-EU"]
["Tunisia","TN","non-EU"]
["Turkey","TR","non-EU"]
["Turkmenistan","TM","non-EU"]
["Turks and Caicos Islands","TC","non-EU"]
["Tuvalu","TV","non-EU"]
["Uganda","UG","non-EU"]
["Ukraine","UA","non-EU"]
["United Arab Emirates","AE","non-EU"]
["United States Minor Outlying Islands","UM","non-EU"]
["United States of America","US","non-EU"]
["Uruguay","UY","non-EU"]
["Uzbekistan","UZ","non-EU"]
["Vanuatu","VU","non-EU"]
["Venezuela (Bolivarian Republic of)","VE","non-EU"]
["Viet Nam","VN","non-EU"]
["Virgin Islands (British)","VG","non-EU"]
["Virgin Islands (U.S.)","VI","non-EU"]
["Wallis and Futuna","WF","non-EU"]
["Western Sahara","EH","non-EU"]
["Yemen","YE","non-EU"]
["Zambia","ZM","non-EU"]
["Zimbabwe","ZW","non-EU"]

{"sheet":"Crop_list","index":3,"n_rows":234,"n_cols":3,"rows_kept":234,"cut":false,"hidden":true,"merged":[]}
["Crop_c_name","Crop_code","Crop_s_name"]
["Citrus fruits",110000,"Not specified"]
["Grapefruits",110010,"Citrus paradisi"]
["Oranges",110020,"Citrus sinensis"]
["Lemons",110030,"Citrus limon"]
["Limes",110040,"Citrus aurantiifolia"]
["Mandarins",110050,"Citrus reticulata, syn: Citrus deliciosa"]
["Almonds",120010,"Amygdalus communis, syn: Prunus dulcis"]
["Brazil nuts",120020,"Bertholletia excelsa"]
["Cashew nuts",120030,"Anacardium occidentale"]
["Chestnuts",120040,"Castanea crenata; Castanea dentata; Castanea mollissima; Castanea sativa"]
["Coconuts",120050,"Cocos nucifera"]
["Hazelnuts",120060,"Corylus avellana"]
["Macadamias",120070,"Macadamia ternifolia, syn: Macadamia integrifolia; Macadamia tetraphylla"]
["Pecans",120080,"Carya illinoinensis"]
["Pine nut kernels",120090,"Pinus pinea"]
["Pistachios",120100,"Pistacia vera"]
["Walnuts",120110,"Juglans nigra; Juglans regia"]
["Pome fruits",130000,"Not specified"]
["Apples",130010,"Malus domestica"]
["Pears",130020,"Pyrus communis"]
["Quinces",130030,"Cydonia oblonga"]
["Medlars",130040,"Mespilus germanica"]
["Loquats",130050,"Eriobotrya japonica"]
["Apricots",140010,"Armeniaca vulgaris, syn: Prunus armeniaca"]
["Cherries",140020,"Cerasus avium, syn: Prunus avium"]
["Peaches",140030,"Persica vulgaris, syn: Prunus persica"]
["Plums",140040,"Prunus domestica"]
["Grapes",151000,"Not specified"]
["Table grapes",151010,"Vitis vinifera"]
["Wine grapes",151020,"Vitis vinifera"]
["Strawberries",152000,"Fragaria x ananassa"]
["Cane fruits",153000,"Not specified"]
["Blackberries",153010,"Rubus sect. Rubus"]
["Dewberries",153020,"Rubus caesius"]
["Raspberries",153030,"Rubus idaeus"]
["Other small fruits and berries",154000,"Not specified"]
["Blueberries",154010,"Vaccinium angustifolium; Vaccinium corymbosum; Vaccinium formosum; Vaccinium virgatum"]
["Cranberries",154020,"Vaccinium macrocarpon"]
["Currants",154030,"Ribes nigrum; Ribes rubrum"]
["Gooseberries",154040,"Ribes uva-crispa"]
["Rose hips",154050,"Rosa canina; Rosa majalis; Rosa rugosa"]
["Mulberries",154060,"Morus alba; Morus nigra"]
["Azaroles",154070,"Crataegus azarolus"]
["Elderberries",154080,"Sambucus nigra"]
["Dates",161010,"Phoenix dactylifera"]
["Figs",161020,"Ficus carica"]
["Table olives",161030,"Olea europaea"]
["Kumquats",161040,"Fortunella japonica; Fortunella margarita"]
["Carambolas",161050,"Averrhoa carambola"]
["Kaki",161060,"Diospyros kaki"]
["Jambuls",161070,"Syzygium cuminii"]
["Kiwi fruits",162010,"Actinidia deliciosa; Actinidia chinensis"]
["Litchis",162020,"Litchi chinensis"]
["Passionfruits",162030,"Passiflora edulis, syn: Passiflora laurifolia"]
["Prickly pears",162040,"Opuntia ficus-indica"]
["Star apples",162050,"Chrysophyllum cainito"]
["American persimmons",162060,"Diospyros virginiana"]
["Avocados",163010,"Persea americana"]
["Bananas",163020,"Musa acuminata; Musa balbisiana; Musa acuminata x Musa balbisiana"]
["Mangoes",163030,"Mangifera indica"]
["Papayas",163040,"Carica papaya"]
["Granate apples",163050,"Punica g ranatum"]
["Cherimoyas",163060,"Annona cherimola"]
["Guavas",163070,"Psidium guajava"]
["Pineapples",163080,"Ananas comosus"]
["Breadfruits",163090,"Artocarpus altilis"]
["Durians",163100,"Durio zibethinus"]
["Soursops",163110,"Annona muricata"]
["Potatoes",211000,"Solanum tuberosum subsp. tuberosum"]
["Tropical root and tuber vegetables",212000,"Not specified"]
["Cassava roots",212010,"Manihot esculenta"]
["Sweet potatoes",212020,"Ipomoea batatas"]
["Yams",212030,"Dioscorea spp."]
["Arrowroots",212040,"Maranta arundinacea"]
["Other root and tuber vegetables except sugar beets",213000,"Not specified"]
["Beetroots",213010,"Beta vulgaris var. vulgaris"]
["Carrots",213020,"Daucus carota subsp. sativus"]
["Celeriacs",213030,"Apium graveolens var. rapaceum"]
["Horseradishes",213040,"Armoracia rusticana"]
["Jerusalem artichokes",213050,"Helianthus tuberosus"]
["Parsnips",213060,"Pastinaca sativa"]
["Parsley roots",213070,"Petroselinum crispum convar. radicosum"]
["Radishes",213080,"Raphanus sativus Radish Group"]
["Salsifies",213090,"Tragopogon porrifolius"]
["Swedes",213100,"Brassica napus subsp. napobrassica"]
["Turnips",213110,"Brassica rapa subsp. rapa"]
["Bulb vegetables",220000,"Not specified"]
["Garlic",220010,"Allium sativum"]
["Onions",220020,"Allium cepa Common Onion Group"]
["Shallots",220030,"Allium cepa Aggregatum Group, syn: Allium ascalonicum"]
["Spring onions",220040,"Allium cepa Common Onion Group; Allium fistulosum"]
["Solanacea",231000,"Not specified"]
["Tomatoes",231010,"Lycopersicon esculentum"]
["Sweet peppers",231020,"Capsicum annuum"]
["Aubergines",231030,"Solanum melongena"]
["Okra",231040,"Abelmoschus esculentus"]
["Cucurbits with edible peel",232000,"Not specified"]
["Cucumbers",232010,"Cucumis sativus"]
["Gherkins",232020,"Cucumis sativus"]
["Courgettes",232030,"Cucurbita pepo Zucchini Group"]
["Cucurbits with inedible peel",233000,"Not specified"]
["Melons",233010,"Cucumis melo"]
["Pumpkins",233020,"Cucurbita maxima"]
["Watermelons",233030,"Citrullus vulgaris, syn: Citrullus lanatus"]
["Sweet corn",234000,"Zea mays convar. Saccharata"]
["Flowering brassica",241000,"Not specified"]
["Broccoli",241010,"Brassica oleracea var. italica"]
["Cauliflowers",241020,"Brassica oleracea var. botrytis"]
["Head brassica",242000,"Not specified"]
["Brussels sprouts",242010,"Brassica oleracea var. gemmifera"]
["Head cabbages",242020,"Brassica oleracea var. capitata"]
["Leafy brassica",243000,"Not specified"]
["Chinese cabbages",243010,"Brassica rapa subsp. pekinensis"]
["Kales",243020,"Brassica oleracea var. sabellica; Brassica oleracea var. viridis"]
["Kohlrabies",244000,"Brassica oleracea var. gongylodes"]
["Lettuces and salad plants",251000,"Not specified"]
["Lamb's lettuces",251010,"Valerianella locusta"]
["Lettuces",251020,"Lactuca sativa"]
["Escaroles",251030,"Cichorium endivia var. latifolia"]
["Cresses",251040,"Lepidium sativum subsp. sativum"]
["Land cresses",251050,"Barbarea verna"]
["Roman rocket",251060,"Eruca sativa"]
["Red mustards",251070,"Brassica juncea var. rugosa"]
["Baby leaf crops",251080,"Not specified"]
["Spinaches and similar leaves",252000,"Not specified"]
["Spinaches",252010,"Spinacia oleracea"]
["Purslanes",252020,"Portulaca oleracea"]
["Chards",252030,"Beta vulgaris var. flavescens"]
["Grape leaves",253000,"Vitis vinifera"]
["Watercresses",254000,"Nasturtium officinale"]
["Witloofs",255000,"Cichorium intybus Foliosum group"]
["Herbs and edible flowers",256000,"Not specified"]
["Chervil",256010,"Anthriscus cerefolium"]
["Chives",256020,"Allium schoenoprasum"]
["Celery leaves",256030,"Apium g raveolens var. secalinum"]
["Parsley",256040,"Petroselinum crispum"]
["Sage",256050,"Salvia officinalis"]
["Rosemary",256060,"Rosmarinus officinalis"]
["Thyme",256070,"Thymus vulgaris"]
["Basil",256080,"Ocimum basilicum"]
["Laurel",256090,"Laurus nobilis"]
["Tarragon",256100,"Artemisia dracunculus"]
["Legume vegetables",260000,"Not specified"]
["Beans (with pods)",260010,"Phaseolus vulgaris"]
["Beans (without pods)",260020,"Phaseolus vulgaris"]
["Peas (with pods)",260030,"Pisum sativum"]
["Peas (without pods)",260040,"Pisum sativum"]
["Lentils (fresh)",260050,"Lens culinaris, syn: Lens esculenta"]
["Stem vegetables",270000,"Not specified"]
["Asparagus",270010,"Asparagus officinalis"]
["Cardoons",270020,"Cynara cardunculus Cardoon group"]
["Celeries",270030,"Apium graveolens var. dulce"]
["Florence fennels",270040,"Foeniculum vulgare var. azoricum"]
["Globe artichokes",270050,"Cynara cardunculus Globe artichoke group"]
["Leeks",270060,"Allium ampeloprasum ampeloprasum Leek Group, syn: Allium porrum"]
["Rhubarbs",270070,"Rheum rhabarbarum"]
["Bamboo shoots",270080,"Bambusa vulgaris; Phyllostachys edulis"]
["Palm hearts",270090,"Bactris gasipaes; Cocos nucifera; Daemonorops jenkinsiana; Euterpe edulis; Euterpe oleracea"]
["Cultivated fungi",280010,"Not specified"]
["Wild fungi",280020,"Not specified"]
["Algae",290000,"Not specified"]
["Pulses",300000,"Not specified"]
["Beans (dry)",300010,"Phaseolus vulgaris"]
["Lentils (dry)",300020,"Lens culinaris, syn: Lens esculenta"]
["Peas (dry)",300030,"Pisum sativum"]
["Lupins (dry)",300040,"Lupinus albus subsp. albus; Lupinus angustifolius; Lupinus luteus; Lupinus mutabilis"]
["Linseeds",401010,"Linum usitatissimum"]
["Peanuts",401020,"Arachis hypogaea"]
["Poppy seeds",401030,"Papaver somniferum subsp. somniferum"]
["Sesame seeds",401040,"Sesamum indicum"]
["Sunflower seeds",401050,"Helianthus annuus"]
["Rapeseeds",401060,"Brassica napus subsp. napus"]
["Soyabeans",401070,"Glycine max"]
["Mustard seeds",401080,"Brassica juncea; Brassica nigra; Sinapis alba"]
["Cotton seeds",401090,"Gossypium barbadense; Gossypium herbaceum"]
["Pumpkin seeds",401100,"Cucurbita pepo Styrian Hulless Group"]
["Safflower seeds",401110,"Carthamus tinctorius"]
["Borage seeds",401120,"Borago officinalis"]
["Gold of pleasure seeds",401130,"Camelina sativa"]
["Hemp seeds",401140,"Cannabis sativa subsp. Sativa; Cannabis sativa subsp. spontanea"]
["Castor beans",401150,"Ricinus communis"]
["Oilfruits",402000,"Not specified"]
["Olives for oil production",402010,"Olea europaea var. europaea"]
["Oil palms kernels",402020,"Attalea maripa; Elaeis guineensis; Elaeis oleifera"]
["Oil palms fruits",402030,"Attalea maripa; Elaeis guineensis; Elaeis oleifera"]
["Kapok",402040,"Ceiba pentandra"]
["Cereals",500000,"Not specified"]
["Barley",500010,"Hordeum vulgare"]
["Buckwheat",500020,"Fagopyrum esculentum"]
["Maize",500030,"Zea mays"]
["Common millet",500040,"Panicum miliaceum"]
["Oat",500050,"Avena sativa"]
["Rice",500060,"Oryza sativa"]
["Rye",500070,"Secale cereale"]
["Sorghum",500080,"Sorghum bicolor"]
["Wheat",500090,"Triticum aestivum"]
["Teas",610000,"Camellia sinensis"]
["Coffee beans",620000,"Coffea arabica; Coffea canephora, syn: Coffea robusta; Coffea liberica"]
["Herbal infusions from flowers",631000,"Not specified"]
["Herbal infusions from leaves and herbs",632000,"Not specified"]
["Herbal infusions from roots",633000,"Not specified"]
["Cocoa beans",640000,"Theobroma cacao"]
["Carobs",650000,"Ceratonia siliqua"]
["Hops",700000,"Humulus lupulus"]
["Seed spices",810000,"Not specified"]
["Fruit spices",820000,"Not specified"]
["Bark spices",830000,"Not specified"]
["Root and rhizome spices",840000,"Not specified"]
["Bud spices",850000,"Not specified"]
["Flower pistil spices",860000,"Not specified"]
["Aril spices",870000,"Not specified"]
["Sugar beets",900010,"Beta vulgaris ssp. vulgaris var. altissima"]
["Sugar canes",900020,"Saccharum officinarum"]
["Chicory roots",900030,"Cichorium intybus; Sativum group"]
["Alfalfa (for forage)",1210010,"Medicago sativa"]
["Beans (for forage)",1210020,"Phaseolus vulgairis"]
["Clover (for forage)",1210030,"Trifolium spp."]
["Cowpeas (for forage)",1210040,"Vigna unguiculata var. unguiculate"]
["Lespedeza (for forage)",1210050,"Lespedeza spp."]
["Peas (for forage)",1210060,"Pisum sativum"]
["Soyabeans (for forage)",1210070,"Glycine max"]
["Trefoil (for forage)",1210080,"Lotus spp."]
["Vetch (for forage)",1210090,"Vicia spp."]
["Barley (for forage)",1220010,"Hordeum vulgare"]
["Common millet (for forage)",1220020,"Panicum miliaceum"]
["Grass (for forage)",1220030,"not specified"]
["Maize (for forage)",1220040,"Zea mays"]
["Oat (for forage)",1220050,"Avena sativa"]
["Rye (for forage)",1220060,"Secale cereale"]
["Sorghum (for forage)",1220070,"Sorghum bicolor"]
["Wheat (for forage)",1220080,"Triticum aestivum"]
["Fodder beets",1240010,"Beta vulgaris spp. vulgaris var. crassa"]
["Rape (for forage)",1250010,"Brassica napus subsp. napus"]

{"sheet":"Dropdown_lists","index":4,"n_rows":102,"n_cols":9,"rows_kept":102,"cut":false,"hidden":true,"merged":[]}
["active_substance","crop_type","outdoor_indoor","formulations","content_units","application_methods","BBCH_scale","rate_units","PHI"]
[null,null,"Outdoor","AB","g/kg","Foliar treatment - general (see also comment field)","n.a.","mg a.i./100 kg","n.a."]
[null,null,"Indoor","AE","g/L","Foliar treatment - broadcast spraying","00","mg a.i./ha",0]
[null,null,"Outdoor & Indoor","AL","mg/kg","Foliar treatment - ultra low volume spraying","01","mg a.i./m",1]
[null,null,null,"AP","mg/L","Local treatment - dabbing or rubbing","02","mg a.i./m2",2]
[null,null,null,"BB","% (v/v)","Local treatment - dipping","03","mg a.i./m3",3]
[null,null,null,"BR","% (w/w)","Local treatment - drenching","04","mg a.i./ton",4]
[null,null,null,"CB",null,"Local treatment - general (see also comment field)","05","mg a.i./unit",7]
[null,null,null,"CF",null,"Post-harvest - spraying","06","g a.i./100 kg",10]
[null,null,null,"CG",null,"Post-harvest treatment - dipping","07","g a.i./ha",14]
[null,null,null,"CL",null,"Post-harvest treatment - drenching","08","g a.i./m",21]
[null,null,null,"CP",null,"Post-harvest treatment - gassing","09","g a.i./m2",28]
[null,null,null,"CS",null,"Post-harvest treatment - general (see also comment field)","10","g a.i./m3",35]
[null,null,null,"DC",null,"Post-harvest treatment - powdering","11","g a.i./ton",42]
[null,null,null,"DP",null,"Post-hervest treatment - fogging","12","g a.i./unit",49]
[null,null,null,"DS",null,"Seed treatment - dipping","13","kg a.i./100 kg",56]
[null,null,null,"DT",null,"Seed treatment - drenching","14","kg a.i./ha",90]
[null,null,null,"EC",null,"Seed treatment - fogging","15","kg a.i./m",120]
[null,null,null,"ED",null,"Seed treatment - gassing","16","kg a.i./m2"]
[null,null,null,"EG",null,"Seed treatment - general (see also comment field)","17","kg a.i./m3"]
[null,null,null,"EO",null,"Seed treatment - powdering","18","kg a.i./ton"]
[null,null,null,"EP",null,"Seed treatment - spraying","19","kg a.i./unit"]
[null,null,null,"ES",null,"Soil treatment - general (see also comment field)","20","10E10 CFU/ ha "]
[null,null,null,"EW",null,"Soil treatment - granules in row","21"]
[null,null,null,"FD",null,"Soil treatment - granules overall","22"]
[null,null,null,"FG",null,"Soil treatment - injection","23"]
[null,null,null,"FK",null,"Soil treatment - spraying","24"]
[null,null,null,"FP",null,null,"25"]
[null,null,null,"FR",null,null,"26"]
[null,null,null,"FS",null,null,"27"]
[null,null,null,"FT",null,null,"28"]
[null,null,null,"FU",null,null,"29"]
[null,null,null,"FW",null,null,"30"]
[null,null,null,"GA",null,null,"31"]
[null,null,null,"GB",null,null,"32"]
[null,null,null,"GE",null,null,"33"]
[null,null,null,"GF",null,null,"34"]
[null,null,null,"GG",null,null,"35"]
[null,null,null,"GL",null,null,"36"]
[null,null,null,"GP",null,null,"37"]
[null,null,null,"GR",null,null,"38"]
[null,null,null,"GS",null,null,"39"]
[null,null,null,"GW",null,null,"40"]
[null,null,null,"HN",null,null,"41"]
[null,null,null,"KK",null,null,"42"]
[null,null,null,"KL",null,null,"43"]
[null,null,null,"KN",null,null,"44"]
[null,null,null,"KP",null,null,"45"]
[null,null,null,"LA",null,null,"46"]
[null,null,null,"LS",null,null,"47"]
[null,null,null,"LV",null,null,"48"]
[null,null,null,"MC",null,null,"49"]
[null,null,null,"ME",null,null,"50"]
[null,null,null,"MG",null,null,"51"]
[null,null,null,"MV",null,null,"52"]
[null,null,null,"OD",null,null,"53"]
[null,null,null,"OF",null,null,"54"]
[null,null,null,"OL",null,null,"55"]
[null,null,null,"OP",null,null,"56"]
[null,null,null,"PA",null,null,"57"]
[null,null,null,"PB",null,null,"58"]
[null,null,null,"PC",null,null,"59"]
[null,null,null,"PO",null,null,"60"]
[null,null,null,"PR",null,null,"61"]
[null,null,null,"PS",null,null,"62"]
[null,null,null,"RB",null,null,"63"]
[null,null,null,"SA",null,null,"64"]
[null,null,null,"SB",null,null,"65"]
[null,null,null,"SC",null,null,"66"]
[null,null,null,"SD",null,null,"67"]
[null,null,null,"SE",null,null,"68"]
[null,null,null,"SG",null,null,"69"]
[null,null,null,"SL",null,null,"70"]
[null,null,null,"SO",null,null,"71"]
[null,null,null,"SP",null,null,"72"]
[null,null,null,"SS",null,null,"73"]
[null,null,null,"ST",null,null,"74"]
[null,null,null,"SU",null,null,"75"]
[null,null,null,"TB",null,null,"76"]
[null,null,null,"TC",null,null,"77"]
[null,null,null,"TK",null,null,"78"]
[null,null,null,"UL",null,null,"79"]
[null,null,null,"VP",null,null,"80"]
[null,null,null,"WG",null,null,"81"]
[null,null,null,"WP",null,null,"82"]
[null,null,null,"WS",null,null,"83"]
[null,null,null,"WT",null,null,"84"]
[null,null,null,"ZC",null,null,"85"]
[null,null,null,"ZE",null,null,"86"]
[null,null,null,"ZW",null,null,"87"]
[null,null,null,null,null,null,"88"]
[null,null,null,null,null,null,"89"]
[null,null,null,null,null,null,"90"]
[null,null,null,null,null,null,"91"]
[null,null,null,null,null,null,"92"]
[null,null,null,null,null,null,"93"]
[null,null,null,null,null,null,"94"]
[null,null,null,null,null,null,"95"]
[null,null,null,null,null,null,"96"]
[null,null,null,null,null,null,"97"]
[null,null,null,null,null,null,"98"]
[null,null,null,null,null,null,"99"]